bitfinex/quotes_BTCUSD_20240828
["timestamp","ask_amount","ask_price","bid_price","bid_amount"]
[1724856415718,0.001,59327.0,59317.0,0.337169]
[1724856415943,0.001,59327.0,59310.0,0.4668]
[1724856416208,0.001,59322.0,59315.0,0.337178]
[1724856416463,0.001,59322.0,59319.0,0.168579]
[1724856416715,0.001,59322.0,59316.0,0.00337138]
[1724856416716,0.001,59322.0,59321.0,0.505722]
[1724856416959,0.001,59322.0,59315.0,0.337182]
[1724856417227,0.00179784,59331.0,59324.0,0.168565]
[1724856417454,0.00179784,59331.0,59319.0,0.337156]
[1724856417455,0.169557,59327.0,59322.0,0.16857]
[1724856417677,0.168563,59325.0,59321.0,0.168573]
[1724856417956,0.168566,59324.0,59319.0,0.244979]
[1724856418201,0.168566,59324.0,59312.0,0.337197]
[1724856418202,0.00179784,59324.0,59312.0,0.337197]
[1724856418470,0.482451,59339.0,59322.0,0.168569]
[1724856418471,0.1454,59339.0,59322.0,0.168569]
[1724856418694,0.16856,59326.0,59321.0,0.168573]
[1724856418935,0.337089,59332.0,59311.0,0.5492]
[1724856418936,0.337089,59332.0,59325.0,0.16856]
[1724856419171,0.337089,59332.0,59311.0,0.5492]
[1724856419172,0.001,59327.0,59323.0,0.168566]
[1724856419396,0.001,59322.0,59320.0,0.168575]
[1724856419624,0.001,59322.0,59321.0,0.505722]
[1724856419844,0.001,59327.0,59326.0,0.16856]
[1724856420103,0.001,59327.0,59326.0,0.16756]
[1724856420392,0.001,59327.0,59313.0,0.002]
[1724856420660,0.000819,59338.0,59337.0,0.168528]
[1724856420917,0.000819,59338.0,59330.0,0.0824]
[1724856420918,0.337071,59335.0,59330.0,0.0804]
[1724856421159,0.000819,59338.0,59321.0,0.0008998]
[1724856421160,0.168555,59328.0,59323.0,0.168567]
[1724856421649,0.168555,59328.0,59321.0,0.3380438]
[1724856421650,0.168544,59332.0,59321.0,0.0008998]
[1724856421673,0.50565,59330.0,59321.0,0.0008998]
[1724856421897,0.0823,59336.0,59321.0,0.0008998]
[1724856421898,0.337124,59326.0,59321.0,0.0008998]
[1724856422145,0.337132,59324.0,59321.0,0.0008998]
[1724856422403,0.505714,59322.0,59321.0,0.0008998]
[1724856422647,0.001,59327.0,59322.0,0.168571]
[1724856422648,0.16856,59326.0,59322.0,0.168571]
[1724856422890,0.168567,59324.0,59321.0,0.0008998]
[1724856423155,0.168561,59326.0,59321.0,0.1694728]
[1724856423406,0.00179784,59327.0,59322.0,0.168571]
[1724856423650,0.001,59324.0,59321.0,0.0028998]
[1724856423893,0.505714,59322.0,59321.0,0.0008998]
[1724856424126,0.168571,59322.0,59321.0,0.0008998]
[1724856424366,0.168571,59322.0,59321.0,0.0038998]
[1724856424608,0.168571,59322.0,59321.0,0.0008998]
[1724856424848,0.337127,59325.0,59321.0,0.0008998]
[1724856425071,0.16857,59323.0,59321.0,0.0008998]
[1724856425314,0.337115,59327.0,59321.0,0.0008998]
[1724856425315,0.001,59322.0,59321.0,0.0008998]
[1724856425785,0.168567,59324.0,59321.0,0.0008998]
[1724856426006,0.02643097,59322.0,59321.0,0.1694738]
[1724856426227,0.02643097,59322.0,59321.0,0.0008998]
[1724856426448,0.02643097,59322.0,59321.0,0.5066218]
[1724856426695,0.02643097,59322.0,59321.0,0.1694738]
[1724856427575,0.02643097,59322.0,59321.0,0.0008998]
[1724856427847,0.02743097,59322.0,59321.0,0.0008998]
[1724856428045,0.53414497,59322.0,59321.0,0.0038998]
[1724856428283,0.87028797,59322.0,59321.0,0.0038998]
[1724856428741,0.53414497,59322.0,59321.0,0.0038998]
[1724856428969,0.87128797,59322.0,59321.0,0.0038998]
[1724856429261,0.87128797,59322.0,59304.0,0.0009009]
[1724856429262,0.505858,59305.0,59304.0,0.0009009]
[1724856429527,0.646158,59305.0,59304.0,0.0009009]
[1724856429754,0.308919,59305.0,59304.0,0.0009009]
[1724856429970,0.646158,59305.0,59304.0,0.0009009]
[1724856430187,0.33535787,59305.0,59304.0,0.0009009]
[1724856430417,0.02643887,59305.0,59304.0,0.5067679]
[1724856430900,0.02643887,59305.0,59304.0,0.9103129]
[1724856431134,0.02643887,59305.0,59304.0,1.3273579]
[1724856432026,0.02743887,59305.0,59304.0,1.3273579]
[1724856432460,0.02643887,59305.0,59304.0,1.3273579]
[1724856432685,0.02643887,59305.0,59304.0,1.3323579]
[1724856432942,0.02743887,59305.0,59304.0,1.3653579]
[1724856433191,0.02743887,59305.0,59304.0,0.0652009]
[1724856433192,0.02843887,59305.0,59304.0,0.0652009]
[1724856433414,0.02843887,59305.0,59304.0,0.1695229]
[1724856433635,0.02843887,59305.0,59304.0,1.2660579]
[1724856433636,0.02743887,59305.0,59304.0,1.2660579]
[1724856433854,0.02743887,59305.0,59304.0,1.2630579]
[1724856434073,0.02643887,59305.0,59304.0,0.9258129]
[1724856434324,0.02743887,59305.0,59304.0,0.5865679]
[1724856434551,0.02743887,59305.0,59304.0,0.0109009]
[1724856434775,0.02743887,59305.0,59304.0,0.1795229]
[1724856434993,0.02743887,59305.0,59304.0,0.8440129]
[1724856435222,0.02743887,59305.0,59304.0,1.1812579]
[1724856435452,0.02743887,59305.0,59304.0,1.5285029]
[1724856435453,0.02843887,59305.0,59304.0,1.5285029]
[1724856435685,0.02843887,59305.0,59304.0,1.6689029]
[1724856435892,0.02843887,59305.0,59304.0,1.6589029]
[1724856435893,0.02743887,59305.0,59304.0,1.6589029]
[1724856436124,0.02743887,59305.0,59304.0,1.6709029]
[1724856436125,0.02843887,59305.0,59304.0,1.6709029]
[1724856436361,0.02743887,59305.0,59304.0,2.0461479]
[1724856436884,0.0618,59326.0,59325.0,0.505689]
[1724856437106,0.01757765,59329.0,59328.0,0.84277]
[1724856437362,0.000819,59338.0,59337.0,0.167528]
[1724856437596,0.000819,59338.0,59337.0,0.504585]
[1724856438078,0.000819,59338.0,59337.0,0.840642]
[1724856438340,0.000819,59338.0,59337.0,0.166528]
[1724856438558,0.000819,59338.0,59337.0,0.168528]
[1724856438785,0.000819,59338.0,59337.0,0.505585]
[1724856439004,0.000819,59338.0,59337.0,0.842642]
[1724856439219,0.000819,59338.0,59337.0,0.844642]
[1724856439468,0.000819,59338.0,59337.0,1.181699]
[1724856439693,0.000819,59338.0,59337.0,0.844642]
[1724856439920,0.000819,59338.0,59337.0,0.511585]
[1724856440151,0.000819,59338.0,59337.0,0.507585]
[1724856440380,0.001819,59338.0,59337.0,0.858642]
[1724856440883,0.000819,59338.0,59337.0,1.181699]
[1724856441117,0.00061616,59338.0,59337.0,0.933342]
[1724856441333,0.00161616,59338.0,59337.0,0.856642]
[1724856441787,0.00261616,59338.0,59337.0,0.194528]
[1724856442021,0.00261616,59338.0,59337.0,0.531585]
[1724856442252,0.00161616,59338.0,59337.0,0.014]
[1724856442482,0.92554616,59338.0,59337.0,0.014]
[1724856442738,1.26259816,59338.0,59337.0,0.014]
[1724856442997,0.337072,59335.0,59322.0,0.50540786]
[1724856443246,0.00179784,59334.0,59323.0,0.168566]
[1724856443462,0.41997216,59338.0,59324.0,0.0768]
[1724856443685,0.92655416,59338.0,59337.0,0.01]
[1724856443902,0.92655416,59338.0,59325.0,0.00337056]
[1724856443903,0.08291616,59338.0,59325.0,0.00337056]
[1724856444119,0.168532,59336.0,59331.0,0.168544]
[1724856444337,0.33767016,59338.0,59331.0,0.337089]
[1724856444338,0.00561616,59338.0,59331.0,0.337089]
[1724856444621,0.16914316,59338.0,59333.0,0.168539]
[1724856445048,0.16914316,59338.0,59326.0,0.0655]
[1724856445049,0.16855,59330.0,59326.0,0.168558]
[1724856445275,0.168549,59330.0,59326.0,0.168559]
[1724856445492,0.00061616,59338.0,59326.0,0.168559]
[1724856445493,0.168547,59331.0,59326.0,0.1719298]
[1724856445715,0.02642597,59330.0,59320.0,0.0655]
[1724856445978,0.168571,59322.0,59315.0,0.33718]
[1724856446210,0.168571,59322.0,59312.0,0.485898]
[1724856446440,0.10212597,59330.0,59315.0,0.337181]
[1724856446662,0.674236,59327.0,59326.0,0.009]
[1724856446872,0.505675,59327.0,59326.0,0.009]
[1724856447132,0.02642921,59328.0,59327.0,0.505671]
[1724856447346,0.02642921,59328.0,59327.0,0.168557]
[1724856447572,0.02642921,59328.0,59327.0,0.504671]
[1724856447790,0.02642921,59328.0,59327.0,0.8451557]
[1724856448009,0.02642921,59328.0,59327.0,0.5080417]
[1724856448511,0.02742921,59328.0,59327.0,0.5200417]
[1724856448727,0.19598321,59328.0,59327.0,0.012]
[1724856448986,0.0799,59327.0,59321.0,0.0098998]
[1724856449194,0.02642921,59328.0,59327.0,0.505671]
[1724856449680,0.02642921,59328.0,59327.0,1.265299]
[1724856449909,0.02642921,59328.0,59327.0,1.331399]
[1724856450392,0.02742921,59328.0,59327.0,1.364399]
[1724856450624,0.001,59328.0,59327.0,1.88997377]
[1724856451081,0.001,59328.0,59327.0,1.71141677]
[1724856451323,0.00061616,59338.0,59337.0,1.262099]
[1724856451532,0.00061616,59338.0,59337.0,1.691256]
[1724856453414,0.00061616,59338.0,59337.0,1.705256]
[1724856453946,0.00061616,59338.0,59337.0,1.691256]
[1724856454185,0.00061616,59338.0,59337.0,1.705256]
[1724856454894,0.00061616,59338.0,59337.0,1.98371677]
[1724856455101,0.00061616,59338.0,59337.0,2.32077377]
[1724856455324,0.000818,59359.0,59358.0,1.179283]
[1724856455546,0.000818,59359.0,59358.0,0.865345]
[1724856456010,0.000818,59359.0,59358.0,0.842345]
[1724856456666,0.000818,59359.0,59358.0,0.844345]
[1724856456878,0.000818,59359.0,59358.0,0.842345]
[1724856457093,0.000818,59359.0,59358.0,0.844345]
[1724856457349,0.000818,59359.0,59358.0,0.867345]
[1724856457600,0.000818,59359.0,59358.0,1.218283]
[1724856457808,0.000818,59359.0,59358.0,0.881345]
[1724856458027,0.000818,59359.0,59358.0,0.870345]
[1724856458247,0.000818,59359.0,59358.0,0.014]
[1724856458487,0.000818,59359.0,59358.0,0.182469]
[1724856458977,0.000818,59359.0,59358.0,0.519407]
[1724856459199,0.000818,59359.0,59358.0,0.870345]
[1724856459862,0.000818,59359.0,59358.0,0.856345]
[1724856460070,0.000818,59359.0,59358.0,0.870345]
[1724856460357,0.000818,59359.0,59358.0,0.86865482]
[1724856460591,0.000818,59359.0,59358.0,1.19159282]
[1724856461017,0.000818,59359.0,59358.0,0.84065482]
[1724856461269,0.000818,59359.0,59348.0,0.0639]
[1724856461270,0.0633,59358.0,59340.0,0.0768]
[1724856461494,0.337003,59347.0,59340.0,0.0768]
[1724856461734,0.168504,59346.0,59341.0,0.168516]
[1724856461983,0.168504,59346.0,59333.0,0.51540786]
[1724856461984,0.0753,59357.0,59332.0,0.0768]
[1724856462221,0.0753,59357.0,59327.0,0.0795998]
[1724856462222,0.0631,59342.0,59327.0,0.0795998]
[1724856462422,0.0631,59342.0,59329.0,0.67395786]
[1724856462631,0.0631,59342.0,59330.0,0.337093]
[1724856462852,0.168522,59340.0,59336.0,0.16853]
[1724856463084,0.168519,59341.0,59340.0,0.007]
[1724856463539,0.400097,59348.0,59342.0,0.168513]
[1724856463761,0.400097,59348.0,59340.0,0.007]
[1724856463762,0.842587,59341.0,59340.0,0.007]
[1724856464188,0.0829,59347.0,59337.0,0.00020287]
[1724856464397,9.0,59342.0,59341.0,0.009]
[1724856464600,9.0,59342.0,59337.0,0.00020287]
[1724856464833,0.168526,59338.0,59337.0,0.00020287]
[1724856465062,0.505578,59338.0,59337.0,0.00020287]
[1724856465315,0.92563,59338.0,59337.0,0.00020287]
[1724856465571,1.426282,59338.0,59337.0,0.00020287]
[1724856466235,1.4527073,59338.0,59337.0,0.00020287]
[1724856466786,1.4527073,59338.0,59337.0,0.01420287]
[1724856467008,1.62125894,59338.0,59337.0,0.01420287]
[1724856467224,1.4527073,59338.0,59337.0,0.00020287]
[1724856467439,1.4547073,59338.0,59337.0,0.00020287]
[1724856467662,1.4547073,59338.0,59337.0,0.01420287]
[1724856467884,1.4547073,59338.0,59337.0,0.00020287]
[1724856468319,1.4547073,59338.0,59337.0,0.00120287]
[1724856469255,1.4547073,59338.0,59337.0,0.00020287]
[1724856469532,1.4527073,59338.0,59337.0,0.00020287]
[1724856469975,1.4577073,59338.0,59337.0,0.00020287]
[1724856470230,1.1214733,59338.0,59337.0,0.00020287]
[1724856470476,1.090048,59338.0,59337.0,0.00020287]
[1724856470722,1.090048,59338.0,59327.0,0.0008998]
[1724856470723,0.85277,59328.0,59327.0,0.0008998]
[1724856470986,0.98747,59328.0,59327.0,0.0008998]
[1724856471184,2.098794,59328.0,59327.0,0.0008998]
[1724856471892,2.110794,59328.0,59327.0,0.0008998]
[1724856472118,2.110794,59328.0,59321.0,0.0008998]
[1724856472119,1.854286,59322.0,59321.0,0.0008998]
[1724856472372,2.093986,59322.0,59321.0,0.0008998]
[1724856472578,2.12742277,59322.0,59321.0,0.0008998]
[1724856472829,2.12542277,59322.0,59321.0,0.0008998]
[1724856473289,2.12542277,59322.0,59289.0,0.50540786]
[1724856473290,0.005,59311.0,59289.0,0.50540786]
[1724856473292,1.596675,59305.0,59289.0,0.50540786]
[1724856473509,1.999814,59305.0,59289.0,0.50540786]
[1724856473752,2.58731838,59305.0,59289.0,0.50540786]
[1724856473988,2.58531838,59305.0,59289.0,0.50540786]
[1724856474205,2.24807938,59305.0,59289.0,0.50540786]
[1724856474453,2.27452475,59305.0,59289.0,0.50540786]
[1724856474685,2.21947125,59305.0,59289.0,0.50540786]
[1724856474908,1.44678137,59305.0,59289.0,0.50540786]
[1724856475132,0.77230337,59305.0,59295.0,0.168647]
[1724856475365,0.77230337,59305.0,59300.0,0.168632]
[1724856475366,0.02644537,59305.0,59300.0,0.168632]
[1724856475604,0.02644537,59305.0,59301.0,0.337257]
[1724856475832,0.02644537,59305.0,59304.0,0.1695229]
[1724856476064,0.02644537,59305.0,59304.0,0.1705229]
[1724856476065,0.03644537,59305.0,59304.0,0.1705229]
[1724856476285,0.02644537,59305.0,59304.0,0.1695229]
[1724856476511,0.04044537,59305.0,59304.0,0.5067679]
[1724856476971,0.04044537,59305.0,59304.0,0.9201129]
[1724856476972,0.02644537,59305.0,59304.0,0.9201129]
[1724856477248,0.02644537,59305.0,59304.0,1.3482579]
[1724856477482,0.02744537,59305.0,59304.0,1.3492579]
[1724856477738,0.02744537,59305.0,59304.0,0.9890129]
[1724856477987,0.02744537,59305.0,59304.0,0.0079009]
[1724856478223,0.02744537,59305.0,59304.0,0.0089009]
[1724856478224,0.02844537,59305.0,59304.0,0.0089009]
[1724856478467,0.02744537,59305.0,59304.0,0.1705229]
[1724856478690,0.02844537,59305.0,59304.0,0.0099009]
[1724856478921,0.02844537,59305.0,59304.0,0.1785229]
[1724856479156,0.19606437,59305.0,59304.0,0.0019009]
[1724856479395,0.53430337,59305.0,59304.0,0.0069009]
[1724856479672,0.53330337,59305.0,59304.0,0.0059009]
[1724856479909,0.87154237,59305.0,59304.0,0.0089009]
[1724856480375,1.35038137,59305.0,59304.0,0.0059009]
[1724856480619,2.21807125,59305.0,59304.0,0.0059009]
[1724856480899,1.46626224,59305.0,59304.0,0.0089009]
[1724856481127,1.46626224,59305.0,59304.0,0.0059009]
[1724856481349,1.61088846,59305.0,59304.0,0.0009009]
[1724856481582,1.46426224,59305.0,59304.0,0.0059009]
[1724856481810,1.46426224,59305.0,59304.0,0.0029009]
[1724856482044,1.11214237,59305.0,59304.0,0.0029009]
[1724856482296,1.11514237,59305.0,59304.0,0.0029009]
[1724856482519,1.45238137,59305.0,59304.0,0.0029009]
[1724856482754,1.11214237,59305.0,59304.0,0.0009009]
[1724856482985,1.01714237,59305.0,59304.0,0.0009009]
[1724856483226,0.54330337,59305.0,59304.0,0.0009009]
[1724856483460,0.88054237,59305.0,59304.0,0.0009009]
[1724856483674,1.21178137,59305.0,59304.0,0.0009009]
[1724856484128,0.87454237,59305.0,59304.0,0.0009009]
[1724856484589,0.86954237,59305.0,59304.0,0.0009009]
[1724856484854,0.87054237,59305.0,59304.0,0.0009009]
[1724856485062,0.87054237,59305.0,59304.0,0.0019009]
[1724856485282,0.87054237,59305.0,59304.0,0.0009009]
[1724856485502,0.87354237,59305.0,59304.0,0.0009009]
[1724856485965,0.87054237,59305.0,59304.0,0.0009009]
[1724856486185,0.02644537,59305.0,59304.0,0.0039009]
[1724856486449,0.02644537,59305.0,59304.0,0.0069009]
[1724856486692,0.02644537,59305.0,59304.0,0.66174028]
[1724856486924,0.02624261,59305.0,59304.0,0.99545337]
[1724856487166,0.02624261,59305.0,59304.0,1.33269837]
[1724856487410,0.02624261,59305.0,59304.0,1.33969837]
[1724856487411,0.02824261,59305.0,59304.0,1.33969837]
[1724856487648,0.02824261,59305.0,59304.0,1.70994337]
[1724856487900,0.02624261,59305.0,59304.0,1.3368579]
[1724856488135,0.337161,59319.0,59308.0,0.337218]
[1724856488378,0.337135,59324.0,59309.0,0.168606]
[1724856488626,0.337135,59324.0,59310.0,0.168604]
[1724856488627,0.168593,59315.0,59310.0,0.168604]
[1724856488855,0.168588,59316.0,59311.0,0.168601]
[1724856489081,0.168588,59316.0,59304.0,0.1445009]
[1724856489082,0.001,59305.0,59304.0,0.6603679]
[1724856489314,0.337162,59319.0,59305.0,0.168619]
[1724856489315,0.337197,59313.0,59305.0,0.168619]
[1724856489574,0.0803,59326.0,59304.0,0.1445009]
[1724856489575,0.168619,59305.0,59304.0,0.0788009]
[1724856489802,0.169619,59305.0,59304.0,0.0069009]
[1724856490039,0.001,59305.0,59304.0,0.5127679]
[1724856490270,0.168619,59305.0,59304.0,0.0009009]
[1724856490510,0.843097,59305.0,59304.0,0.0009009]
[1724856490741,1.29854738,59305.0,59304.0,0.0009009]
[1724856491010,1.243936,59305.0,59304.0,0.0009009]
[1724856491500,1.581175,59305.0,59304.0,0.0049009]
[1724856491726,1.344936,59305.0,59304.0,0.0179009]
[1724856492168,1.343936,59305.0,59304.0,0.0049009]
[1724856492393,1.35881547,59305.0,59304.0,0.0049009]
[1724856492662,1.35881547,59305.0,59304.0,0.0089009]
[1724856493323,1.83518168,59305.0,59304.0,0.0049009]
[1724856493540,1.91138168,59305.0,59304.0,0.0049009]
[1724856493760,2.24862068,59305.0,59304.0,0.0089009]
[1724856494203,2.27162068,59305.0,59304.0,0.0089009]
[1724856494426,2.27362068,59305.0,59304.0,0.0089009]
[1724856494648,2.27362068,59305.0,59304.0,0.0009009]
[1724856494649,2.23070535,59305.0,59304.0,0.0009009]
[1724856494900,2.24070535,59305.0,59304.0,0.0009009]
[1724856495134,1.88546635,59305.0,59304.0,0.0019009]
[1724856495364,1.44501547,59305.0,59304.0,0.0009009]
[1724856495592,1.88046635,59305.0,59304.0,0.0009009]
[1724856495823,2.56994435,59305.0,59304.0,0.0019009]
[1724856496043,2.38625699,59305.0,59304.0,0.0009009]
[1724856496530,2.41225699,59305.0,59304.0,0.0019009]
[1724856497230,2.42625699,59305.0,59304.0,0.0019009]
[1724856497471,2.77349599,59305.0,59304.0,0.0019009]
[1724856497728,2.76149599,59305.0,59304.0,0.0019009]
[1724856497974,2.77149599,59305.0,59304.0,0.0019009]
[1724856498242,0.168705,59275.0,59274.0,0.50540786]
[1724856498471,0.506115,59275.0,59274.0,0.50540786]
[1724856498694,0.168709,59274.0,59272.0,0.0806]
[1724856499149,0.0753,59286.0,59272.0,0.0806]
[1724856499150,0.337366,59283.0,59272.0,0.08397399]
[1724856499381,0.337344,59287.0,59273.0,0.00337362]
[1724856499600,0.1643,59291.0,59272.0,0.0806]
[1724856499601,0.168706,59275.0,59272.0,0.0806]
[1724856499825,0.168707,59275.0,59272.0,0.0806]
[1724856500072,0.1643,59291.0,59272.0,0.0806]
[1724856500314,0.506131,59273.0,59272.0,0.0806]
[1724856500538,0.16871,59273.0,59272.0,0.0806]
[1724856500765,0.337389,59279.0,59272.0,0.0806]
[1724856500990,0.168691,59280.0,59276.0,0.168701]
[1724856501213,0.001,59275.0,59273.0,0.168708]
[1724856501463,0.001,59275.0,59273.0,0.00337388]
[1724856501684,0.337359,59284.0,59272.0,0.0806]
[1724856501915,0.168702,59276.0,59272.0,0.249311]
[1724856502142,0.00179784,59283.0,59272.0,0.25268493]
[1724856502143,0.1687,59277.0,59272.0,0.25268493]
[1724856502364,0.001,59273.0,59272.0,0.249311]
[1724856503065,0.001,59273.0,59272.0,0.586738]
[1724856503523,0.001,59273.0,59272.0,0.249311]
[1724856503747,0.168702,59276.0,59272.0,0.0806]
[1724856503996,0.168693,59280.0,59275.0,0.168704]
[1724856504221,0.33738,59281.0,59272.0,0.0806]
[1724856504222,0.168694,59279.0,59274.0,0.168706]
[1724856504450,0.337317,59292.0,59275.0,0.00337385]
[1724856504678,0.337317,59292.0,59272.0,0.0806]
[1724856504679,0.00279784,59290.0,59278.0,0.168694]
[1724856504913,0.36974478,59287.0,59272.0,0.0806]
[1724856505195,0.506131,59273.0,59272.0,0.0806]
[1724856505431,0.36974478,59280.0,59271.0,0.009398]
[1724856505432,0.168713,59272.0,59271.0,0.009398]
[1724856505668,0.50893784,59272.0,59271.0,0.009398]
[1724856505892,0.50614,59272.0,59271.0,0.009398]
[1724856506130,0.843567,59272.0,59271.0,0.009398]
[1724856506366,0.9279237,59272.0,59271.0,0.009398]
[1724856506604,1.180994,59272.0,59271.0,0.009398]
[1724856507051,1.258894,59272.0,59271.0,0.009398]
[1724856507533,1.27407073,59272.0,59271.0,0.009398]
[1724856507755,1.27407073,59272.0,59271.0,0.011398]
[1724856507756,1.27507073,59272.0,59271.0,0.011398]
[1724856508681,1.27607073,59272.0,59271.0,0.011398]
[1724856509381,1.27507073,59272.0,59271.0,0.009398]
[1724856509604,1.27586778,59272.0,59271.0,0.011398]
[1724856512184,0.01717673,59272.0,59271.0,0.011398]
[1724856512407,0.002,59272.0,59271.0,0.157198]
[1724856512631,0.170713,59272.0,59271.0,0.157198]
[1724856512863,0.002,59272.0,59271.0,0.325914]
[1724856513123,0.002,59272.0,59271.0,1.00078]
[1724856513342,0.002,59272.0,59271.0,1.338213]
[1724856514023,0.001,59272.0,59271.0,1.336213]
[1724856514255,0.35262122,59289.0,59282.0,0.0802]
[1724856514256,0.01528922,59289.0,59282.0,0.0802]
[1724856514474,0.337336,59288.0,59283.0,0.168682]
[1724856514731,0.36974478,59294.0,59282.0,0.0802]
[1724856514965,0.00279784,59293.0,59282.0,0.0802]
[1724856515199,0.337325,59290.0,59282.0,0.0802]
[1724856515451,0.168674,59286.0,59282.0,0.248884]
[1724856515714,0.337325,59290.0,59282.0,0.248884]
[1724856515715,0.168663,59290.0,59286.0,0.168672]
[1724856515949,0.337309,59293.0,59284.0,0.168678]
[1724856516193,0.168643,59297.0,59292.0,0.168655]
[1724856516419,0.16237765,59304.0,59285.0,0.337351]
[1724856516420,0.01791063,59300.0,59288.0,0.0662]
[1724856516641,0.01791063,59300.0,59288.0,0.23823895]
[1724856516642,0.33728,59298.0,59288.0,0.23823895]
[1724856516863,0.33728,59298.0,59289.0,0.33733]
[1724856517095,0.33728,59298.0,59288.0,0.06957295]
[1724856517096,0.168654,59293.0,59288.0,0.0662]
[1724856517321,0.168657,59292.0,59288.0,0.234866]
[1724856517542,0.337304,59294.0,59292.0,0.003]
[1724856517768,0.337278,59299.0,59292.0,0.003]
[1724856517769,0.168654,59293.0,59292.0,0.003]
[1724856518034,0.41745679,59304.0,59288.0,0.0662]
[1724856518275,0.001,59293.0,59289.0,0.0775]
[1724856518505,0.001,59293.0,59292.0,0.505969]
[1724856518737,0.001,59293.0,59292.0,0.843282]
[1724856518976,0.001,59293.0,59292.0,0.924582]
[1724856519213,0.001,59293.0,59288.0,0.009]
[1724856519431,0.505995,59289.0,59288.0,0.009]
[1724856519915,0.01509524,59294.0,59280.0,0.0813]
[1724856520145,0.337326,59290.0,59281.0,0.00337329]
[1724856520388,0.0815,59298.0,59280.0,0.0813]
[1724856520664,0.00279784,59297.0,59282.0,0.00337329]
[1724856520926,0.506996,59289.0,59288.0,0.009]
[1724856521155,0.844326,59289.0,59288.0,0.009]
[1724856521403,0.337249,59304.0,59275.0,0.337409]
[1724856521404,0.001,59293.0,59292.0,0.168656]
[1724856521646,0.00279784,59305.0,59292.0,0.06587259]
[1724856521893,0.01797695,59305.0,59294.0,0.16865]
[1724856522137,0.01797695,59305.0,59282.0,0.005]
[1724856522138,0.0778,59297.0,59284.0,0.0625]
[1724856522367,0.506046,59283.0,59282.0,0.0774]
[1724856523038,0.168682,59283.0,59282.0,0.0774]
[1724856523263,0.337364,59283.0,59278.0,0.0625]
[1724856523529,0.337363,59284.0,59278.0,0.231195]
[1724856523753,0.168686,59282.0,59278.0,0.231196]
[1724856524212,0.168688,59281.0,59278.0,0.0625]
[1724856524479,0.168693,59279.0,59278.0,0.0735]
[1724856524709,0.50608,59279.0,59278.0,0.011]
[1724856524941,0.50608,59279.0,59278.0,0.014]
[1724856525166,0.168693,59279.0,59275.0,0.168702]
[1724856525382,0.33737,59282.0,59278.0,0.011]
[1724856525632,0.44877806,59293.0,59279.0,0.00337366]
[1724856525633,0.168667,59289.0,59279.0,0.00337366]
[1724856525874,0.337332,59289.0,59284.0,0.0798]
[1724856526117,0.168676,59285.0,59284.0,0.0798]
[1724856526564,0.506029,59285.0,59284.0,0.0798]
[1724856526801,0.01513328,59293.0,59284.0,0.0798]
[1724856527089,0.0617,59298.0,59285.0,0.00337318]
[1724856527330,0.168664,59290.0,59285.0,0.17204818]
[1724856527575,0.168665,59289.0,59285.0,0.167675]
[1724856527802,0.168665,59289.0,59284.0,0.09417321]
[1724856527803,0.0617,59298.0,59286.0,0.00337324]
[1724856528030,0.0617,59298.0,59297.0,0.168642]
[1724856528257,0.337251,59303.0,59296.0,0.0621]
[1724856528483,0.16944,59305.0,59296.0,0.40275763]
[1724856528732,0.000818,59305.0,59298.0,0.337278]
[1724856528967,0.000818,59305.0,59299.0,0.00337218]
[1724856529194,0.168623,59304.0,59296.0,0.0621]
[1724856529421,0.000818,59305.0,59300.0,0.168633]
[1724856529699,0.168623,59304.0,59300.0,0.168633]
[1724856529927,0.169439,59305.0,59300.0,0.248933]
[1724856530152,0.000818,59305.0,59300.0,0.08367232]
[1724856530379,0.000818,59305.0,59304.0,0.505867]
[1724856531107,0.000818,59305.0,59304.0,0.843112]
[1724856531605,0.000818,59305.0,59304.0,1.327757]
[1724856531834,0.000818,59305.0,59304.0,1.339757]
[1724856532735,0.000818,59305.0,59304.0,1.677002]
[1724856532954,0.337061,59337.0,59314.0,0.005]
[1724856533184,0.84244286,59341.0,59320.0,0.925985]
[1724856533406,0.50540786,59341.0,59320.0,1.268139]
[1724856533669,9.337033,59342.0,59320.0,1.332439]
[1724856533894,0.168518,59341.0,59320.0,1.332439]
[1724856534119,9.0,59342.0,59320.0,1.669593]
[1724856534335,9.0,59342.0,59320.0,1.681593]
[1724856534562,9.0,59342.0,59320.0,1.87305377]
[1724856534836,9.0,59342.0,59320.0,2.21020777]
[1724856535063,9.0,59342.0,59337.0,1.300899]
[1724856535266,9.0,59342.0,59337.0,1.305899]
[1724856536364,9.0,59342.0,59337.0,1.307899]
[1724856536598,9.0,59342.0,59337.0,1.654956]
[1724856537530,9.0,59342.0,59337.0,1.322899]
[1724856538201,9.0,59342.0,59337.0,1.323899]
[1724856538450,9.0,59342.0,59337.0,1.317899]
[1724856538673,9.0,59342.0,59337.0,1.329899]
[1724856538934,9.0,59342.0,59337.0,1.333899]
[1724856539169,9.0,59342.0,59337.0,0.289728]
[1724856539392,0.169345,59338.0,59337.0,0.014]
[1724856539640,0.843449,59338.0,59337.0,0.014]
[1724856539876,0.843449,59338.0,59329.0,0.168549]
[1724856539877,0.000818,59338.0,59329.0,0.168549]
[1724856540112,0.000818,59338.0,59337.0,0.505585]
[1724856540342,0.168537,59334.0,59327.0,0.0804]
[1724856540575,1.3253,59338.0,59337.0,0.014]
[1724856540813,1.3253,59338.0,59315.0,0.168589]
[1724856540814,0.0796,59324.0,59315.0,0.168589]
[1724856541049,0.0796,59324.0,59313.0,0.5499]
[1724856541050,0.16858,59319.0,59318.0,0.50540786]
[1724856541279,0.0796,59330.0,59310.0,0.0649]
[1724856541596,0.505807,59311.0,59310.0,0.0649]
[1724856541842,0.505807,59311.0,59297.0,0.7922]
[1724856541843,0.337273,59299.0,59298.0,0.50540786]
[1724856542092,0.168636,59299.0,59298.0,0.50540786]
[1724856542360,0.0792,59312.0,59284.0,0.0811998]
[1724856542615,0.986882,59285.0,59284.0,0.0008998]
[1724856543090,1.324235,59285.0,59284.0,0.0008998]
[1724856543315,1.429235,59285.0,59284.0,0.0008998]